bitfinex/quotes_SOLUSD_20220207
["timestamp","ask_amount","ask_price","bid_price","bid_amount"]
[1644276373559,36.12215057,117.46,117.4,1.98640304]
[1644276373755,33.975322,117.45,117.4,1.98640304]
[1644276373954,6.40382857,117.46,117.4,1.98640304]
[1644276373955,12.7816,117.44,117.4,1.98640304]
[1644276375256,14.92842857,117.44,117.39,11.55]
[1644276375455,14.92842857,117.44,117.32,0.024]
[1644276375655,14.92842857,117.44,117.26,4.258]
[1644276375656,4.259,117.43,117.3,0.024]
[1644276375855,12.7889,117.4,117.3,0.024]
[1644276376056,12.7889,117.4,117.28,0.024]
[1644276376458,14.93572857,117.4,117.28,0.024]
[1644276376656,14.93572857,117.4,117.24,46.938298]
[1644276376857,12.7889,117.4,117.24,46.938298]
[1644276377064,2.14682857,117.39,117.24,52.938298]
[1644276377263,12.7887,117.37,117.24,52.938298]
[1644276377463,12.7887,117.37,117.22,24.33444362]
[1644276377662,2.14682857,117.36,117.22,24.33444362]
[1644276377862,29.375386,117.35,117.22,1.04684362]
[1644276378060,4.261,117.35,117.22,1.04684362]
[1644276378260,12.7933,117.33,117.22,1.04684362]
[1644276378660,14.94012857,117.33,117.22,1.04684362]
[1644276379060,24.01899337,117.33,117.22,1.04684362]
[1644276379765,14.94012857,117.33,117.22,1.04684362]
[1644276379962,14.94012857,117.33,117.22,5.04684362]
[1644276380163,14.94012857,117.33,117.22,5.29684362]
[1644276380363,12.7933,117.33,117.22,6.95064144]
[1644276380564,12.7933,117.33,117.22,1.90379782]
[1644276381167,12.7933,117.33,117.22,7.90379782]
[1644276381369,12.7933,117.33,117.22,1.90379782]
[1644276381564,12.7933,117.33,117.22,7.90379782]
[1644276382564,24.357,117.35,117.22,7.90379782]
[1644276382766,18.7914,117.35,117.22,7.90379782]
[1644276382967,6.0,117.35,117.22,7.90379782]
[1644276383264,23.4528,117.37,117.24,0.73944473]
[1644276383468,29.4528,117.37,117.24,0.73944473]
[1644276383666,29.4528,117.37,117.24,2.39998483]
[1644276383867,29.4528,117.37,117.24,26.40088483]
[1644276384067,42.492,117.37,117.24,32.65088483]
[1644276384468,2.14682857,117.36,117.24,6.73944473]
[1644276384668,2.14682857,117.36,117.24,0.73944473]
[1644276385268,12.793,117.34,117.24,0.73944473]
[1644276386570,30.297,117.34,117.24,0.73944473]
[1644276388474,30.547,117.34,117.24,0.73944473]
[1644276389875,18.793,117.34,117.25,1.66796057]
[1644276390079,23.4528,117.37,117.25,1.66796057]
[1644276390278,23.4528,117.37,117.24,0.73944473]
[1644276390476,2.14682857,117.36,117.24,0.73944473]
[1644276391476,2.39682857,117.36,117.24,0.73944473]
[1644276391976,21.18742857,117.36,117.24,0.73944473]
[1644276392389,2.14682857,117.35,117.24,0.73944473]
[1644276393486,2.14682857,117.35,117.25,1.66796057]
[1644276393684,2.14682857,117.35,117.25,1.69196057]
[1644276393883,2.14682857,117.35,117.25,0.024]
[1644276394084,12.7944,117.32,117.24,0.73944473]
[1644276394486,12.7944,117.32,117.26,8.37857881]
[1644276396488,13.0444,117.32,117.26,8.37857881]
[1644276397089,19.0444,117.32,117.26,8.37857881]
[1644276397488,12.7969,117.3,117.26,8.37857881]
[1644276398090,12.7969,117.3,117.25,8.37857881]
[1644276399613,14.94372857,117.3,117.25,8.37857881]
[1644276400314,15.19372857,117.3,117.25,8.37857881]
[1644276401012,21.19372857,117.3,117.25,8.37857881]
[1644276402812,21.19372857,117.3,117.24,0.73944473]
[1644276403016,12.8032,117.28,117.19,0.024]
[1644276403212,13.987553,117.27,117.25,0.3644]
[1644276403414,13.987553,117.27,117.19,0.024]
[1644276403415,50.86000957,117.27,117.19,0.024]
[1644276403614,59.54470957,117.26,117.17,0.24433488]
[1644276403816,32.579459,117.25,117.17,0.24433488]
[1644276404013,34.72628757,117.25,117.12,47.26331823]
[1644276404312,12.8059,117.23,117.12,0.48866976]
[1644276404712,6.41382857,117.22,117.12,0.48866976]
[1644276404913,2.14682857,117.22,117.12,0.48866976]
[1644276405114,2.14682857,117.21,117.12,0.48866976]
[1644276405313,47.5848,117.23,117.12,0.48866976]
[1644276405518,2.14682857,117.22,117.12,0.48866976]
[1644276405914,47.90862542,117.23,117.12,0.48866976]
[1644276405915,12.8092,117.19,117.12,0.48866976]
[1644276408021,14.95602857,117.19,117.12,0.48866976]
[1644276408218,20.95602857,117.19,117.12,0.48866976]
[1644276409219,21.20602857,117.19,117.12,0.48866976]
[1644276409619,32.38786403,117.19,117.1,0.64451736]
[1644276409823,4.268,117.18,117.1,0.64451736]
[1644276410019,12.8176,117.16,117.1,0.64451736]
[1644276410420,2.14682857,117.15,117.1,0.64451736]
[1644276410821,4.268,117.16,117.1,0.64451736]
[1644276411021,8.41749862,117.17,117.1,0.64451736]
[1644276411222,12.8168,117.14,117.03,0.6000363]
[1644276411624,10.55940366,117.13,117.03,0.6000363]
[1644276411823,14.82840366,117.13,117.03,0.1000363]
[1644276412022,2.14682857,117.12,117.03,0.1000363]
[1644276412422,12.8211,117.1,117.03,0.1000363]
[1644276416626,14.96792857,117.1,117.03,0.1000363]
[1644276417026,12.8211,117.1,117.03,0.1000363]
[1644276417625,12.8211,117.1,117.03,1.1000363]
[1644276417827,12.8158,117.12,117.03,1.3500363]
[1644276418229,12.8158,117.12,117.03,1.1000363]
[1644276419529,18.8158,117.12,117.03,1.1000363]
[1644276419728,19.0658,117.12,117.03,1.3500363]
[1644276420129,21.21262857,117.12,117.03,1.1000363]
[1644276420330,25.48162857,117.12,117.03,1.1000363]
[1644276420528,21.21262857,117.12,117.03,1.1000363]
[1644276420730,19.0658,117.12,117.03,1.1000363]
[1644276420933,21.21262857,117.12,117.03,1.1000363]
[1644276421429,19.0658,117.12,117.03,1.1000363]
[1644276421630,18.8158,117.12,117.03,1.3500363]
[1644276422032,18.8158,117.12,117.03,1.1000363]
[1644276422234,12.8158,117.12,117.03,1.1000363]
[1644276422434,18.8158,117.12,117.03,1.1000363]
[1644276424636,19.0658,117.12,117.03,1.1000363]
[1644276425437,18.8158,117.12,117.03,1.1000363]
[1644276425838,18.8158,117.12,117.03,1.3500363]
[1644276426041,18.8158,117.12,117.03,1.1000363]
[1644276426240,18.8158,117.12,117.03,1.3500363]
[1644276426640,19.0658,117.12,117.03,1.3500363]
[1644276427042,18.8158,117.12,117.04,1.68654147]
[1644276427243,18.8158,117.12,117.04,0.25]
[1644276427442,12.8158,117.12,117.04,0.25]
[1644276427642,12.8158,117.12,117.04,0.7730766]
[1644276428349,12.8158,117.12,117.04,0.5230766]
[1644276429044,14.96262857,117.12,117.04,0.5230766]
[1644276429243,12.8217,117.09,117.04,0.5230766]
[1644276430949,18.8217,117.09,117.04,0.5230766]
[1644276431155,12.8217,117.09,117.04,0.5230766]
[1644276431348,6.41782857,117.14,117.04,0.5230766]
[1644276431349,12.8171,117.11,117.04,0.5230766]
[1644276431549,12.8171,117.11,117.04,0.5470766]
[1644276431751,12.8171,117.11,117.04,0.5230766]
[1644276433774,18.8171,117.11,117.04,0.5230766]
[1644276434174,12.8171,117.11,117.04,0.5230766]
[1644276436274,47.704,117.15,117.04,1.16371757]
[1644276436475,6.0,117.11,116.98,0.5973141]
[1644276436672,2.14682857,117.1,116.98,0.5973141]
[1644276436871,83.33823008,117.1,116.98,0.5973141]
[1644276437074,89.33823008,117.1,116.98,0.5973141]
[1644276437273,30.68693008,117.09,116.98,0.5973141]
[1644276437474,12.8256,117.07,116.98,0.5973141]
[1644276440081,19.0756,117.07,116.98,0.5973141]
[1644276440278,2.14682857,117.06,116.98,0.5973141]
[1644276440486,12.8286,117.04,116.98,0.5973141]
[1644276441179,12.8286,117.04,116.92,2.38159218]
[1644276441377,8.7332416,117.03,116.92,2.38159218]
[1644276441579,22.04905171,117.03,116.87,2.6261617]
[1644276441776,16.27171817,117.02,116.87,2.6261617]
[1644276441976,4.275,117.01,116.87,2.6261617]
[1644276442177,12.8305,117.0,116.87,2.6261617]
[1644276442376,4.275,116.99,116.87,2.6261617]
[1644276442576,3.775,116.99,116.87,2.6261617]
[1644276442777,9.04181011,116.98,116.87,2.6261617]
[1644276442976,11.18863868,116.98,116.87,2.6261617]
[1644276443177,12.8365,116.96,116.87,2.6261617]
[1644276446080,12.8365,116.96,116.87,2.8761617]
[1644276446280,42.775,117.0,116.87,2.8761617]
[1644276446281,12.8308,116.98,116.87,2.8761617]
[1644276446479,12.8308,116.98,116.87,8.8761617]
[1644276448083,12.8308,116.98,116.87,8.3761617]
[1644276448284,12.8308,116.98,116.87,31.0638617]
[1644276448784,12.8289,117.0,116.87,8.3761617]
[1644276448981,69.5431,117.03,116.88,52.3475]
[1644276448982,24.65022857,117.03,116.88,52.3475]
[1644276449185,22.5034,117.03,116.88,48.3225]
[1644276449383,28.7538,117.04,116.88,48.3225]
[1644276449588,8.31340459,117.06,116.88,68.48000084]
[1644276449782,12.8254,117.03,116.89,4.274]
[1644276449982,52.05,117.09,116.92,12.8242]
[1644276450185,47.776,117.09,116.93,47.0716]
[1644276450384,2.14682857,117.13,116.93,47.0716]
[1644276450583,49.92282857,117.13,116.93,53.3216]
[1644276450783,49.92282857,117.13,116.93,67.47910084]
[1644276450983,12.8191,117.09,116.93,110.21440084]
[1644276451183,12.8191,117.09,116.94,12.3215]
[1644276451394,12.8191,117.09,116.93,47.0716]
[1644276451585,14.96592857,117.09,116.93,47.0716]
[1644276451789,47.6891,117.08,116.94,0.024]
[1644276451988,12.8266,117.04,116.94,0.024]
[1644276453388,12.8266,117.04,116.95,8.3966]
[1644276453591,12.8266,117.04,116.95,8.4206]
[1644276453788,12.8266,117.04,116.95,8.6706]
[1644276454688,14.97342857,117.04,116.95,8.6706]
[1644276454888,12.8266,117.04,116.95,8.6706]
[1644276456191,13.0766,117.04,116.95,8.6706]
[1644276459094,13.0766,117.04,116.95,8.4206]
[1644276459298,21.22342857,117.04,116.95,8.4206]
[1644276459595,4.273,117.03,116.95,8.4206]
[1644276459798,12.8305,117.01,116.95,8.3966]
[1644276460001,12.8305,117.01,116.95,8.4206]
[1644276460199,17.1045,117.01,116.95,8.3966]
[1644276460499,12.8305,117.01,116.95,8.3966]
[1644276460898,12.8305,117.01,116.89,8.3966]
[1644276461098,12.8305,117.01,116.97,0.55691258]
[1644276462200,12.8305,117.01,116.9,0.024]
[1644276462404,12.8305,117.01,116.9,24.0251]
[1644276462802,12.8305,117.01,116.9,24.2751]
[1644276463900,12.8305,117.01,116.91,8.3966]
[1644276464099,12.8305,117.01,116.91,21.2226]
[1644276464300,12.8305,117.01,116.91,21.4726]
[1644276464503,12.8253,117.03,116.91,21.4726]
[1644276464705,12.8253,117.03,116.92,47.342]
[1644276464902,12.8253,117.03,116.93,0.024]
[1644276466807,42.7567,117.05,116.93,0.024]
[1644276466808,12.8233,117.05,116.93,0.024]
[1644276467006,12.8233,117.05,116.94,8.3966]
[1644276467302,48.9181,117.09,116.96,12.8208]
[1644276467505,48.9181,117.09,116.97,48.8201]
[1644276467704,48.9181,117.09,116.98,0.024]
[1644276467905,12.8208,117.07,116.98,0.024]
[1644276468104,48.9181,117.09,116.97,49.0701]
[1644276468304,48.9181,117.09,116.98,0.024]
[1644276468904,61.7369,117.09,116.98,12.8426]
[1644276469104,61.7369,117.09,116.99,0.024]
[1644276469303,12.481731,117.08,116.99,0.024]
[1644276470503,12.8237,117.06,117.0,8.3966]
[1644276472004,55.1681,117.09,117.0,8.3966]
[1644276472209,12.8198,117.08,117.0,8.4206]
[1644276472405,25.305757,117.08,117.0,8.3966]
[1644276472605,12.8198,117.08,117.0,8.3966]
[1644276472806,13.0698,117.08,117.0,8.3966]
[1644276473305,2.14682857,117.07,117.0,8.3966]
[1644276473506,13.0698,117.08,117.0,8.3966]
[1644276474128,13.0698,117.08,116.99,8.4206]
[1644276475729,13.0698,117.08,116.99,8.6706]
[1644276478130,19.0698,117.08,116.99,8.6706]
[1644276478730,19.0698,117.08,116.99,8.4206]
[1644276480137,19.0698,117.08,116.99,8.6706]
[1644276480435,13.0698,117.08,116.99,8.6706]
[1644276480837,13.0698,117.08,116.99,8.4206]
[1644276481039,15.21662857,117.08,116.99,8.4206]
[1644276481240,13.0698,117.08,116.99,8.4206]
[1644276482237,13.0698,117.08,116.99,8.6706]
[1644276482639,12.8198,117.08,116.99,14.6706]
[1644276483939,12.8198,117.08,116.99,21.239]
[1644276484138,12.8198,117.08,116.99,8.4206]
[1644276484139,18.8198,117.08,116.99,8.4206]
[1644276484438,20.96662857,117.08,116.99,8.4206]
[1644276484638,12.8198,117.08,116.99,8.4206]
[1644276484839,18.8198,117.08,116.99,8.4206]
[1644276485541,18.8198,117.08,116.99,8.6706]
[1644276486138,19.0698,117.08,116.99,8.6706]
[1644276486341,13.0698,117.08,116.99,8.6706]
[1644276486741,13.0698,117.08,116.99,8.6466]
[1644276486942,13.0698,117.08,116.99,21.4652]
[1644276487340,12.8198,117.08,116.99,21.4652]
[1644276487540,12.8171,117.1,116.99,29.175241]
[1644276487740,42.7247,117.12,116.99,29.175241]
[1644276487741,24.0853,117.13,116.99,29.175241]
[1644276487944,24.0853,117.13,117.0,48.4131]
[1644276488141,24.0853,117.13,117.0,54.4131]
[1644276488342,24.0853,117.13,117.01,1.710041]
[1644276488542,24.0853,117.13,117.01,7.710041]
[1644276488842,69.8345,117.16,117.03,12.8141]
[1644276489045,71.5635,117.16,117.04,48.4268]
[1644276489243,71.5635,117.16,117.04,48.6768]
[1644276490352,65.5635,117.16,117.04,48.6768]
[1644276490550,136.4988,117.17,117.04,63.200341]
[1644276490748,6.66728655,117.21,117.04,63.200341]
[1644276490944,4.269,117.21,117.04,69.200341]
[1644276491146,115.49828655,117.23,117.04,69.200341]
[1644276491343,115.49828655,117.23,117.05,8.3966]
[1644276491547,12.8066,117.2,117.1,12.8061]
[1644276491846,12.8066,117.2,117.09,46.7441]
[1644276492245,12.8066,117.2,117.06,1.710041]
[1644276492446,12.812,117.15,117.05,8.3966]
[1644276493148,13.04195,117.15,117.05,8.3966]
[1644276493547,15.18877857,117.15,117.05,8.3966]
[1644276493746,13.04195,117.15,117.05,8.3966]
[1644276493945,13.04195,117.15,117.05,8.6466]
[1644276494345,13.04195,117.15,117.05,0.25]
[1644276495146,13.04195,117.15,117.04,8.6466]
[1644276495847,19.04195,117.15,117.04,8.6466]
[1644276496348,19.04195,117.15,117.04,21.4603]
[1644276497147,18.79195,117.15,117.04,21.4603]
[1644276497347,12.79195,117.15,117.04,23.170341]
[1644276497547,12.8098,117.17,117.04,29.170341]
[1644276497749,22.8151,117.21,117.08,12.8077]
[1644276497948,12.480665,117.2,117.09,47.5454]
[1644276498151,22.8151,117.21,117.09,55.942]
[1644276498350,12.480665,117.2,117.09,55.942]
[1644276498549,12.8077,117.19,117.09,8.3966]
[1644276500151,12.8077,117.19,117.09,8.6466]
[1644276500755,13.0577,117.19,117.09,10.106641]
[1644276500956,13.0577,117.19,117.09,8.3966]
[1644276501160,19.0577,117.19,117.09,8.3966]
[1644276501356,21.20452857,117.19,117.09,8.3966]
[1644276501554,21.20452857,117.19,117.07,12.8099]
[1644276501757,44.21472857,117.19,117.07,12.8099]
[1644276502153,42.0679,117.19,117.06,8.3966]
[1644276502353,46.3359,117.19,117.06,8.6466]
[1644276502555,59.91596083,117.19,117.06,8.6466]
[1644276503260,55.64796083,117.19,117.06,8.6466]
[1644276503456,2.14682857,117.18,117.06,8.3966]
[1644276503654,12.8142,117.15,117.06,8.3966]
[1644276504558,19.0642,117.15,117.06,8.3966]
[1644276504757,19.0642,117.15,117.05,8.3966]
[1644276505159,19.0642,117.15,117.05,10.356641]
[1644276505359,19.0642,117.15,117.05,8.6466]
[1644276505560,18.8142,117.15,117.05,8.6466]
[1644276505864,18.8142,117.15,117.05,8.3966]
[1644276506860,19.0642,117.15,117.05,8.3966]
[1644276507060,19.0642,117.15,117.05,8.6466]
[1644276507884,12.8142,117.15,117.05,8.6466]
[1644276508084,12.8102,117.17,117.05,10.36219143]
[1644276508286,119.76728655,117.22,117.06,23.2042]
[1644276508487,113.1,117.22,117.07,24.9406]
[1644276508686,113.1,117.22,117.07,41.30279143]
[1644276509286,113.1,117.22,117.08,24.9422]
[1644276509486,119.1,117.22,117.08,24.9422]
[1644276509688,22.5962,117.21,117.08,26.90779143]
[1644276509887,35.4022,117.21,117.08,39.71649143]
[1644276510092,35.4022,117.21,117.08,38.0009]
[1644276510488,35.4022,117.21,117.08,44.0009]
[1644276510694,35.4022,117.21,117.08,37.7509]
[1644276511002,35.4022,117.21,117.08,24.9422]
[1644276511189,35.6522,117.21,117.08,25.1922]
[1644276511388,37.79902857,117.21,117.08,24.9422]
[1644276511788,37.79902857,117.21,117.09,8.3966]
[1644276511990,4.268,117.2,117.09,8.3966]
[1644276512189,12.8113,117.17,117.09,8.3966]
[1644276513190,18.8113,117.17,117.09,8.6466]
[1644276513392,12.8113,117.17,117.09,8.6466]
[1644276513791,12.8113,117.17,117.09,10.36219143]
[1644276513990,12.808,117.19,117.09,8.6466]
[1644276514691,13.058,117.19,117.09,8.6466]
[1644276514891,13.058,117.19,117.09,21.4553]
[1644276515392,19.058,117.19,117.09,21.4553]
[1644276516296,18.808,117.19,117.09,21.4553]
[1644276516493,18.808,117.19,117.09,23.17089143]
[1644276516694,12.808,117.19,117.09,23.17089143]
[1644276516894,18.808,117.19,117.09,21.4553]
[1644276517796,19.058,117.19,117.09,21.4553]
[1644276517996,21.20482857,117.19,117.09,8.6466]
[1644276518195,21.20482857,117.19,117.09,8.3966]
[1644276519197,19.058,117.19,117.09,8.3966]
[1644276520500,4.268,117.18,117.09,8.3966]
[1644276520698,12.813,117.16,117.09,8.3966]
[1644276524403,19.063,117.16,117.09,8.3966]
[1644276528109,21.20982857,117.16,117.09,8.3966]
[1644276528309,21.20982857,117.16,117.08,8.3966]
[1644276528508,30.38182857,117.16,117.08,8.3966]
[1644276528909,28.235,117.16,117.08,8.3966]
[1644276531313,28.235,117.16,117.04,8.3966]
[1644276531515,6.41582857,117.15,117.04,8.3966]
[1644276531716,12.818,117.12,117.04,8.3966]
[1644276532720,12.818,117.12,117.04,8.6466]
[1644276532918,12.8125,117.14,117.04,8.6466]
[1644276533318,23.8667,117.16,117.04,8.6466]
[1644276533516,23.8667,117.16,117.05,24.3623]
[1644276533718,23.8667,117.16,117.07,12.8114]
[1644276534118,23.8667,117.16,117.07,13.0614]
[1644276534518,12.8109,117.15,117.08,8.3966]
[1644276535221,113.1,117.18,117.08,21.4569]
[1644276535421,25.22478655,117.2,117.08,21.4569]
[1644276535620,28.8265,117.2,117.09,23.5811]
[1644276535821,28.8265,117.2,117.09,23.8311]
[1644276535822,12.8074,117.19,117.09,23.8311]
[1644276536620,6.0,117.2,117.1,12.8074]
[1644276536822,2.39828655,117.23,117.1,13.0574]
[1644276537021,12.8039,117.22,117.11,23.9001]
[1644276537223,12.8039,117.22,117.11,24.1501]
[1644276537621,12.8039,117.22,117.12,8.3966]
[1644276537820,12.8039,117.22,117.12,8.6466]
[1644276538122,13.0539,117.22,117.12,8.6466]
[1644276538521,13.0539,117.22,117.12,8.3966]
[1644276539322,21.20072857,117.22,117.12,8.3966]
[1644276539922,11.45660245,117.21,117.12,8.3966]
[1644276540125,12.8092,117.19,117.12,8.3966]
[1644276544153,19.0592,117.19,117.12,8.3966]
[1644276545263,13.0592,117.19,117.12,8.3966]
[1644276546154,19.0592,117.19,117.12,8.3966]
[1644276551466,18.8092,117.19,117.12,8.3966]
[1644276551864,12.8092,117.19,117.12,8.3966]
[1644276552867,13.0592,117.19,117.12,8.3966]
[1644276555672,19.0592,117.19,117.12,8.3966]
[1644276556069,19.0592,117.19,117.09,8.3966]
[1644276556270,21.20602857,117.19,117.09,8.3966]
[1644276556469,12.8144,117.16,117.09,8.3966]
[1644276559070,12.8144,117.16,117.07,8.3966]
[1644276559776,12.8144,117.16,117.07,8.6466]
[1644276559975,12.8144,117.16,117.07,21.4582]
[1644276560176,12.808,117.18,117.08,1.72133001]
[1644276560379,2.44051376,117.22,117.08,25.12013001]
[1644276560673,0.04222721,117.23,117.09,29.1570569]
[1644276560874,0.04222721,117.22,117.11,12.8059]
[1644276561077,0.04222721,117.22,117.11,41.9849]
[1644276561275,0.04222721,117.23,117.12,29.1570569]
[1644276561477,0.04222721,117.22,117.12,40.09093623]
[1644276561675,0.04222721,117.23,117.13,16.45265876]
[1644276561873,1.19018488,117.24,117.15,12.7994]
[1644276562079,0.04222721,117.24,117.15,65.8786]
[1644276562275,1.23241209,117.25,117.15,67.85547933]
[1644276562473,1.19018488,117.26,117.15,67.85547933]
[1644276562873,1.23241209,117.26,117.15,67.85547933]
[1644276563076,1.19018488,117.26,117.15,67.85547933]
[1644276563475,8.488e-05,117.28,117.15,105.95528766]
[1644276563875,8.488e-05,117.28,117.18,0.31962819]
[1644276564076,11.50384289,117.31,117.21,12.7893]
[1644276564275,11.50384289,117.31,117.21,13.0393]
[1644276564477,11.50384289,117.32,117.22,1.72687933]
[1644276564775,11.50384289,117.32,117.22,60.52607933]
[1644276564975,2.39828655,117.38,117.22,60.52607933]
[1644276565177,2.39828655,117.38,117.25,12.7886]
[1644276565378,4.7748137,117.39,117.25,17.0496]
[1644276565581,4.7748137,117.39,117.26,1.72687933]
[1644276565777,11.51809393,117.38,117.26,1.97687933]
[1644276565980,11.51809393,117.38,117.26,7.97687933]
[1644276566181,0.15920576,117.4,117.26,7.97687933]
[1644276566182,2.37590383,117.4,117.26,7.97687933]
[1644276566377,0.25,117.38,117.29,12.785]
[1644276566579,11.5214151,117.39,117.29,12.785]
[1644276566778,11.5214151,117.39,117.29,13.035]
[1644276566981,6.56841152,117.4,117.29,13.035]
[1644276567400,19.35391152,117.4,117.29,13.035]
[1644276567601,13.10391152,117.4,117.29,21.231]
[1644276567801,0.31841152,117.4,117.29,22.95787933]
[1644276568003,0.31841152,117.4,117.29,28.95787933]
[1644276568208,0.31841152,117.4,117.3,8.3966]
[1644276568403,0.31841152,117.4,117.33,12.781]
[1644276568804,0.31841152,117.4,117.33,13.031]
[1644276569009,0.31841152,117.4,117.33,14.75787933]
[1644276569206,0.00841152,117.4,117.33,20.75787933]
[1644276569708,0.092584,117.46,117.37,12.7731]
[1644276570104,0.092584,117.46,117.38,1.72687933]
[1644276570304,0.092584,117.46,117.38,1.97687933]
[1644276570505,0.092584,117.46,117.38,6.25]
[1644276570708,0.092584,117.46,117.38,0.25]
[1644276571306,0.092584,117.46,117.39,8.3966]
[1644276572306,0.092584,117.46,117.39,8.6466]
[1644276572805,0.092584,117.46,117.39,8.3966]
[1644276573210,0.092584,117.46,117.39,8.6466]
[1644276576210,0.092584,117.46,117.39,8.3966]
[1644276576711,0.092584,117.46,117.39,8.6466]
[1644276576910,0.092584,117.46,117.39,8.3966]
[1644276577111,0.092584,117.46,117.36,8.3966]
[1644276577309,0.092584,117.46,117.36,8.6466]
[1644276578612,0.13418455,117.46,117.36,8.6466]
[1644276579519,12.7806,117.45,117.36,8.6466]
[1644276579714,0.13418455,117.46,117.37,1.72687933]
[1644276579916,0.092584,117.46,117.37,26.18757933]
[1644276580118,0.092584,117.46,117.38,8.3966]
[1644276580318,0.092584,117.46,117.38,10.37347933]
[1644276580518,0.092584,117.46,117.38,16.37347933]
[1644276580716,0.092584,117.46,117.39,16.19988098]
[1644276581117,0.092584,117.46,117.4,1.72687933]
[1644276581316,0.092584,117.46,117.4,1.97687933]
[1644276581517,0.092584,117.46,117.4,7.97687933]
[1644276581917,0.092584,117.46,117.4,20.74837933]
[1644276582618,0.092584,117.46,117.4,19.0215]
[1644276583017,0.092584,117.46,117.4,20.74837933]
[1644276583525,0.092584,117.46,117.41,8.3966]
[1644276583720,0.092584,117.46,117.41,8.6466]
[1644276584318,0.092584,117.46,117.41,8.3966]
[1644276586023,0.092584,117.46,117.41,8.6466]
[1644276587218,0.092584,117.46,117.41,8.3966]
[1644276587821,0.092584,117.46,117.4,8.3966]
[1644276588625,0.092584,117.46,117.4,8.6466]
[1644276588820,0.092584,117.46,117.4,8.3966]
[1644276589719,0.092584,117.46,117.4,8.6466]
[1644276592823,0.092584,117.46,117.41,1.72687933]
[1644276593221,0.092584,117.46,117.41,7.97687933]
[1644276593522,0.092584,117.46,117.42,10.12347933]
[1644276593724,0.092584,117.46,117.42,10.37347933]
[1644276595323,0.092584,117.46,117.42,16.37347933]
[1644276595522,0.092584,117.46,117.42,10.37347933]
[1644276596525,0.092584,117.46,117.42,8.6466]
[1644276596727,0.092584,117.46,117.43,1.72687933]
[1644276596927,0.092584,117.46,117.44,6.06439994]
[1644276597127,0.092584,117.46,117.44,14.46099994]
[1644276599130,0.092584,117.46,117.44,12.96099994]
[1644276599330,0.092584,117.46,117.44,8.6466]
[1644276599529,0.092584,117.46,117.45,3.03219997]
[1644276600131,0.092584,117.46,117.45,12.96099994]
[1644276600331,0.092584,117.46,117.45,13.21099994]
[1644276600931,0.092584,117.46,117.45,12.96099994]
[1644276601934,0.092584,117.46,117.45,13.21099994]
[1644276609940,0.002584,117.46,117.45,14.93787927]
[1644276610138,0.002584,117.46,117.45,20.93787927]
[1644276611141,0.002584,117.46,117.45,68.83407927]
[1644276611940,0.002584,117.46,117.45,111.38547927]
[1644276613242,0.002584,117.46,117.45,111.13547927]
[1644276613443,0.002584,117.46,117.45,66.85719994]
[1644276613642,0.002584,117.46,117.45,60.85719994]
[1644276614745,0.002584,117.46,117.45,61.10719994]
[1644276615344,0.2155324,117.51,117.45,61.10719994]
[1644276615545,0.182584,117.46,117.45,61.10719994]
[1644276617545,0.002584,117.46,117.45,68.83407927]
[1644276617744,0.002584,117.46,117.45,83.30708092]
[1644276618544,0.002584,117.46,117.45,125.85878092]
[1644276619146,0.002584,117.46,117.45,125.60878092]
[1644276620647,0.002584,117.46,117.45,125.85878092]
[1644276621847,0.005168,117.46,117.45,139.24774728]
[1644276622247,0.2155324,117.51,117.45,139.24774728]
[1644276624271,0.0055324,117.51,117.45,139.24774728]
[1644276624774,0.0055324,117.51,117.45,147.55022532]
[1644276625472,0.0055324,117.51,117.46,4.256]
[1644276625674,0.0055324,117.51,117.47,12.7607]
[1644276625875,0.4310648,117.51,117.48,22.7356]
[1644276626173,0.04160055,117.61,117.49,0.1378715]
[1644276626374,0.04160055,117.59,117.49,39.53183938]
[1644276626574,0.10835184,117.64,117.5,28.6021]
[1644276626575,0.04160055,117.63,117.5,28.6021]
[1644276626774,12.7577,117.64,117.54,12.7585]